bitfinex/quotes_BTCUSD_20240921
["timestamp","ask_amount","ask_price","bid_price","bid_amount"]
[1726949632257,1.47676467,63269.0,63268.0,0.002652]
[1726949632474,1.87478264,63269.0,63268.0,0.002652]
[1726949632701,1.80387467,63269.0,63268.0,0.002652]
[1726949632907,1.79287467,63269.0,63268.0,0.002652]
[1726949633124,1.81587467,63269.0,63268.0,0.002652]
[1726949633336,0.47427,63255.0,63249.0,0.0947]
[1726949633571,0.89871248,63255.0,63249.0,0.0947]
[1726949635069,0.89971248,63255.0,63254.0,0.006652]
[1726949635770,0.89971248,63255.0,63254.0,0.009652]
[1726949639787,0.89971248,63255.0,63254.0,0.02455129]
[1726949642099,1.21589248,63255.0,63254.0,0.02455129]
[1726949642379,1.37894615,63255.0,63254.0,0.009652]
[1726949642589,1.47544615,63255.0,63254.0,0.009652]
[1726949643543,1.47544615,63255.0,63254.0,0.006652]
[1726949643996,1.57844615,63255.0,63254.0,0.001652]
[1726949644233,1.60973641,63255.0,63254.0,0.001652]
[1726949645475,1.58644615,63255.0,63254.0,0.001652]
[1726949645736,1.59844615,63255.0,63254.0,0.001652]
[1726949647131,1.50194615,63255.0,63254.0,0.001652]
[1726949648018,1.48994615,63255.0,63254.0,0.001652]
[1726949648486,1.50194615,63255.0,63254.0,0.001652]
[1726949648890,1.48994615,63255.0,63254.0,0.001652]
[1726949649305,1.50194615,63255.0,63254.0,0.001652]
[1726949650150,1.51394615,63255.0,63254.0,0.001652]
[1726949650373,1.50194615,63255.0,63254.0,0.001652]
[1726949650579,1.48894615,63255.0,63254.0,0.001652]
[1726949651013,1.49994615,63255.0,63254.0,0.001652]
[1726949672365,1.54718256,63255.0,63254.0,0.001652]
[1726949672573,1.49994615,63255.0,63254.0,0.001652]
[1726949673218,1.54719988,63255.0,63254.0,0.001652]
[1726949673434,1.49994615,63255.0,63254.0,0.001652]
[1726949673670,1.57085684,63255.0,63254.0,0.001652]
[1726949674358,1.57085792,63255.0,63254.0,0.001652]
[1726949674585,1.49994615,63255.0,63254.0,0.001652]
[1726949675248,1.5247217,63255.0,63254.0,0.001652]
[1726949675459,1.61919453,63255.0,63254.0,0.001652]
[1726949676096,1.61929796,63255.0,63254.0,0.001652]
[1726949677643,1.5247217,63255.0,63254.0,0.001652]
[1726949678123,1.64294203,63255.0,63254.0,0.001652]
[1726949678371,1.5247217,63255.0,63254.0,0.001652]
[1726949678625,1.64294203,63255.0,63254.0,0.001652]
[1726949683467,1.5247217,63255.0,63254.0,0.001652]
[1726949704471,0.30486555,63255.0,63254.0,0.094252]
[1726949704698,0.71582676,63255.0,63254.0,0.094252]
[1726949704949,0.69213323,63255.0,63254.0,0.10971977]
[1726949705196,0.62104555,63255.0,63254.0,0.10971977]
[1726949705646,0.668421,63255.0,63254.0,0.10971977]
[1726949706408,0.984601,63255.0,63254.0,0.10971977]
[1726949706650,0.98459248,63255.0,63254.0,0.10971977]
[1726949706869,1.00831323,63255.0,63254.0,0.094252]
[1726949707092,1.0082757,63255.0,63254.0,0.094252]
[1726949707314,0.9972757,63255.0,63254.0,0.094252]
[1726949707544,1.0022757,63255.0,63254.0,0.094252]
[1726949707792,0.9912757,63255.0,63254.0,0.094252]
[1726949708228,0.9962757,63255.0,63254.0,0.094252]
[1726949709503,0.92522555,63255.0,63254.0,0.094252]
[1726949709726,0.9962757,63255.0,63254.0,0.094252]
[1726949710189,0.92522555,63255.0,63254.0,0.094252]
[1726949710607,0.9962757,63255.0,63254.0,0.094252]
[1726949710855,0.92522555,63255.0,63254.0,0.094252]
[1726949711298,0.9962757,63255.0,63254.0,0.094252]
[1726949711738,0.92522555,63255.0,63254.0,0.094252]
[1726949712468,0.92022555,63255.0,63254.0,0.094252]
[1726949713419,0.96757634,63255.0,63254.0,0.094252]
[1726949713653,0.9675746,63255.0,63254.0,0.094252]
[1726949713906,0.92022555,63255.0,63254.0,0.094252]
[1726949714604,0.9912757,63255.0,63254.0,0.094252]
[1726949714851,0.92022555,63255.0,63254.0,0.094252]
[1726949715091,0.96757337,63255.0,63254.0,0.094252]
[1726949715569,0.96757194,63255.0,63254.0,0.094252]
[1726949716229,0.92022555,63255.0,63254.0,0.094252]
[1726949716729,0.9675715,63255.0,63254.0,0.094252]
[1726949716959,0.92022555,63255.0,63254.0,0.094252]
[1726949720955,0.96756992,63255.0,63254.0,0.094252]
[1726949721889,0.92022555,63255.0,63254.0,0.094252]
[1726949722109,0.96756992,63255.0,63254.0,0.094252]
[1726949722840,0.92022555,63255.0,63254.0,0.094252]
[1726949723069,0.96756786,63255.0,63254.0,0.094252]
[1726949723294,0.96839386,63255.0,63254.0,0.094252]
[1726949723525,0.92105155,63255.0,63254.0,0.094252]
[1726949725912,0.9921017,63255.0,63254.0,0.094252]
[1726949726140,0.96839507,63255.0,63254.0,0.094252]
[1726949730296,0.92105155,63255.0,63254.0,0.094252]
[1726949731008,0.9921017,63255.0,63254.0,0.094252]
[1726949731266,0.92105155,63255.0,63254.0,0.094252]
[1726949738302,0.99206802,63255.0,63254.0,0.094252]
[1726949742835,1.30827241,63255.0,63254.0,0.094252]
[1726949743109,1.23723155,63255.0,63254.0,0.094252]
[1726949743598,1.40028522,63255.0,63254.0,0.001652]
[1726949743815,1.51868666,63255.0,63254.0,0.001652]
[1726949744509,1.40028522,63255.0,63254.0,0.001652]
[1726949745201,1.41933653,63255.0,63254.0,0.001652]
[1726949748122,1.40028522,63255.0,63254.0,0.001652]
[1726949748336,1.51868453,63255.0,63254.0,0.001652]
[1726949748552,1.51868705,63255.0,63254.0,0.001652]
[1726949755054,1.40028522,63255.0,63254.0,0.001652]
[1726949769550,1.51866885,63255.0,63254.0,0.001652]
[1726949769769,1.40028522,63255.0,63254.0,0.001652]
[1726949792763,1.5085477,63255.0,63254.0,0.001652]
[1726949799665,1.5085477,63255.0,63254.0,0.096152]
[1726949803158,1.5085477,63255.0,63254.0,0.001652]
[1726949824346,1.52069955,63255.0,63254.0,0.001652]
[1726949831691,1.36760955,63255.0,63254.0,0.001652]
[1726949831923,1.52569955,63255.0,63254.0,0.001652]
[1726949832834,0.29369155,63255.0,63254.0,0.091652]
[1726949833057,0.65624579,63255.0,63254.0,0.091652]
[1726949833299,0.585096,63255.0,63254.0,0.10785214]
[1726949833530,0.268916,63255.0,63254.0,0.10785214]
[1726949836867,0.585096,63255.0,63254.0,0.10785214]
[1726949837919,0.010826,63255.0,63254.0,0.10785214]
[1726949838147,0.010826,63255.0,63254.0,0.58212914]
[1726949838993,0.010826,63255.0,63254.0,0.89831414]
[1726949839470,0.005826,63255.0,63254.0,0.89831414]
[1726949839684,0.000826,63255.0,63254.0,0.89831414]
[1726949840737,0.001826,63255.0,63254.0,0.90231414]
[1726949841348,0.000826,63255.0,63254.0,0.90231414]
[1726949841560,0.001826,63255.0,63254.0,0.90731414]
[1726949842847,0.002826,63255.0,63254.0,0.91131414]
[1726949850170,0.002826,63255.0,63254.0,1.30459914]
[1726949851525,0.002826,63255.0,63254.0,0.35604414]
[1726949851765,0.002826,63255.0,63254.0,0.67222914]
[1726949859563,0.002826,63255.0,63254.0,0.19795214]
[1726949860078,0.002826,63255.0,63254.0,0.35604414]
[1726949863498,0.002826,63255.0,63254.0,0.67222914]
[1726949864824,0.12324033,63255.0,63254.0,0.27894414]
[1726949866693,0.12324033,63255.0,63254.0,0.12085214]
[1726949868315,0.12324033,63255.0,63254.0,0.27894414]
[1726949870351,0.12324033,63255.0,63254.0,0.12085214]
[1726949871447,0.002826,63255.0,63254.0,0.27894414]
[1726949871709,0.002826,63255.0,63254.0,0.12085214]
[1726949873605,0.002826,63255.0,63254.0,0.27894414]
[1726949878597,0.160916,63255.0,63254.0,0.12085214]
[1726949879035,0.002826,63255.0,63254.0,0.12085214]
[1726949879479,0.160916,63255.0,63254.0,0.12085214]
[1726949881066,0.477096,63255.0,63254.0,0.12085214]
[1726949881933,0.160916,63255.0,63254.0,0.12085214]
[1726949882375,0.002826,63255.0,63254.0,0.12085214]
[1726949883223,0.160916,63255.0,63254.0,0.12085214]
[1726949884087,0.28133033,63255.0,63254.0,0.12085214]
[1726949885192,0.59751033,63255.0,63254.0,0.12085214]
[1726949888023,0.28133033,63255.0,63254.0,0.12085214]
[1726949890209,0.59751033,63255.0,63254.0,0.12085214]
[1726949890834,0.28133033,63255.0,63254.0,0.12085214]
[1726949891661,0.160916,63255.0,63254.0,0.12085214]
[1726949891918,0.477096,63255.0,63254.0,0.12085214]
[1726949892514,0.477096,63255.0,63254.0,0.104652]
[1726949892937,0.477096,63255.0,63254.0,0.12147442]
[1726949895128,0.477096,63255.0,63254.0,0.03147442]
[1726949895129,0.793276,63255.0,63254.0,0.03147442]
[1726949895568,0.793276,63255.0,63254.0,0.014652]
[1726949896044,0.792276,63255.0,63254.0,0.009652]
[1726949896499,1.51261033,63255.0,63254.0,0.009652]
[1726949896731,1.46420967,63255.0,63254.0,0.001652]
[1726949897430,1.58262382,63255.0,63254.0,0.001652]
[1726949897648,1.58762382,63255.0,63254.0,0.001652]
[1726949897867,1.58162382,63255.0,63254.0,0.001652]
[1726949898085,1.70505005,63255.0,63254.0,0.001652]
[1726949898323,1.71505005,63255.0,63254.0,0.001652]
[1726949898560,1.5836359,63255.0,63254.0,0.001652]
[1726949898785,1.61256968,63255.0,63254.0,0.001652]
[1726949898985,1.61256968,63255.0,63254.0,0.001072]
[1726949899409,1.70725433,63255.0,63254.0,0.001072]
[1726949899840,1.71725433,63255.0,63254.0,0.001072]
[1726949900473,1.62256968,63255.0,63254.0,0.001072]
[1726949901344,1.69355897,63255.0,63254.0,0.001072]
[1726949901973,1.62256968,63255.0,63254.0,0.001072]
[1726949902395,1.69355122,63255.0,63254.0,0.001072]
[1726949904114,1.69354346,63255.0,63254.0,0.001072]
[1726949904340,1.62256968,63255.0,63254.0,0.001072]
[1726949904542,1.69354346,63255.0,63254.0,0.001072]
[1726949905464,1.62256968,63255.0,63254.0,0.001072]
[1726949907130,1.66987261,63255.0,63254.0,0.001072]
[1726949907367,1.66986943,63255.0,63254.0,0.001072]
[1726949908419,1.66986802,63255.0,63254.0,0.001072]
[1726949910129,1.69464355,63255.0,63254.0,0.001072]
[1726949910801,1.71764355,63255.0,63254.0,0.001072]
[1726949911071,2.03382355,63255.0,63254.0,0.001072]
[1726949911276,1.98652521,63255.0,63254.0,0.001072]
[1726949913506,1.98852521,63255.0,63254.0,0.001072]
[1726949914374,1.98652521,63255.0,63254.0,0.001072]
[1726949914589,2.0338059,63255.0,63254.0,0.001072]
[1726949915019,2.03380561,63255.0,63254.0,0.001072]
[1726949915674,1.98652521,63255.0,63254.0,0.001072]
[1726949916342,2.03380316,63255.0,63254.0,0.001072]
[1726949921425,1.98652521,63255.0,63254.0,0.001072]
[1726949922302,1.89382521,63255.0,63254.0,0.001072]
[1726949926512,1.96474843,63255.0,63254.0,0.001072]
[1726949926736,1.89382521,63255.0,63254.0,0.001072]
[1726949927210,1.96474843,63255.0,63254.0,0.001072]
[1726949927968,2.08399922,63255.0,63254.0,0.001072]
[1726949928228,2.1076403,63255.0,63254.0,0.001072]
[1726949929397,2.01203059,63255.0,63254.0,0.001072]
[1726949930637,1.89382521,63255.0,63254.0,0.001072]
[1726949937122,1.89582521,63255.0,63254.0,0.001072]
[1726949937370,1.89382521,63255.0,63254.0,0.001072]
[1726949937879,1.89582521,63255.0,63254.0,0.001072]
[1726949939700,1.89382521,63255.0,63254.0,0.001072]
[1726949940591,2.17429838,63255.0,63254.0,0.001072]
[1726949941782,2.03567166,63255.0,63254.0,0.001072]
[1726949942251,1.89382521,63255.0,63254.0,0.001072]
[1726949943662,2.03597883,63255.0,63254.0,0.001072]
[1726949954167,1.71979883,63255.0,63254.0,0.091272]
[1726949954389,1.57764521,63255.0,63254.0,0.091272]
[1726949954606,0.74029776,63255.0,63254.0,0.091272]
[1726949954850,0.81031994,63255.0,63254.0,0.091272]
[1726949955104,0.81031994,63255.0,63254.0,0.1087914]
[1726949955105,0.4467423,63255.0,63254.0,0.1087914]
[1726949955321,0.29934223,63255.0,63254.0,0.1087914]
[1726949955544,0.29934223,63255.0,63254.0,0.091272]
[1726949956003,0.60552223,63255.0,63254.0,0.091272]
[1726949956666,0.59552223,63255.0,63254.0,0.091272]
[1726949956929,0.61352223,63255.0,63254.0,0.092272]
[1726949957142,0.61352223,63255.0,63254.0,0.091272]
[1726949957639,0.61752223,63255.0,63254.0,0.091272]
[1726949957865,0.60852223,63255.0,63254.0,0.091272]
[1726949958112,0.60052223,63255.0,63254.0,0.091272]
[1726949958542,0.60452223,63255.0,63254.0,0.091272]
[1726949958978,0.60052223,63255.0,63254.0,0.091272]
[1726949959395,0.60252223,63255.0,63254.0,0.091272]
[1726949960932,0.59752223,63255.0,63254.0,0.091272]
[1726949961153,0.59652223,63255.0,63254.0,0.091272]
[1726949961363,0.59852223,63255.0,63254.0,0.091272]
[1726949961817,0.59952223,63255.0,63254.0,0.091272]
[1726949962084,0.59752223,63255.0,63254.0,0.091272]
[1726949962287,0.59852223,63255.0,63254.0,0.091272]
[1726949964217,0.59552223,63255.0,63254.0,0.091272]
[1726949964700,0.59652223,63255.0,63254.0,0.091272]
[1726949989511,0.001826,63255.0,63254.0,0.091272]
[1726949989769,0.001826,63255.0,63254.0,0.565549]
[1726949990508,0.000826,63255.0,63254.0,0.565549]
[1726949991005,0.001826,63255.0,63254.0,0.565549]
[1726949991494,0.000826,63255.0,63254.0,0.565549]
[1726949992027,0.000826,63255.0,63254.0,0.568549]
[1726949993276,0.000826,63255.0,63254.0,0.252364]
[1726950002640,0.791276,63255.0,63254.0,0.094272]
[1726950003117,1.107456,63255.0,63254.0,0.094272]
[1726950003355,1.107456,63255.0,63254.0,0.093272]
[1726950003567,1.108456,63255.0,63254.0,0.093272]
[1726950003767,1.108456,63255.0,63254.0,0.001072]
[1726950003987,1.114456,63255.0,63254.0,0.002072]
[1726950004207,1.113456,63255.0,63254.0,0.002072]
[1726950004427,1.113456,63255.0,63254.0,0.001072]
[1726950004646,1.119456,63255.0,63254.0,0.002072]
[1726950013875,1.16683758,63255.0,63254.0,0.002072]
[1726950014302,1.119456,63255.0,63254.0,0.002072]
[1726950014520,1.16683758,63255.0,63254.0,0.002072]
[1726950014741,1.119456,63255.0,63254.0,0.002072]
[1726950014969,1.32989125,63255.0,63254.0,0.002072]
[1726950015197,1.28250967,63255.0,63254.0,0.002072]
[1726950016613,1.35358204,63255.0,63254.0,0.002072]
[1726950018978,1.35358204,63255.0,63244.0,0.0008845]
[1726950018979,1.106805,63245.0,63244.0,0.0008845]
[1726950019206,1.26985867,63245.0,63244.0,0.0008845]
[1726950019434,1.26985867,63245.0,63244.0,0.01851349]
[1726950019675,1.26985867,63245.0,63244.0,0.0008845]
[1726950020364,1.26985867,63245.0,63244.0,0.0018845]
[1726950020365,1.27585867,63245.0,63244.0,0.0018845]
[1726950020589,1.27585867,63245.0,63244.0,0.0008845]
[1726950021037,1.28285867,63245.0,63244.0,0.0018845]
[1726950022410,1.28885867,63245.0,63244.0,0.0018845]
[1726950023766,0.97262867,63245.0,63244.0,0.0018845]
[1726950023987,0.97262867,63245.0,63244.0,0.0966845]
[1726950023988,0.61377123,63245.0,63244.0,0.0966845]
[1726950024689,0.61377123,63245.0,63244.0,0.11432177]
[1726950024913,0.61377123,63245.0,63244.0,0.0966845]
[1726950025359,0.61377123,63245.0,63244.0,0.11432177]
[1726950025581,0.019,63245.0,63244.0,0.27243877]
[1726950025803,0.019,63245.0,63244.0,0.2548015]
[1726950026562,0.013,63245.0,63244.0,0.2548015]
[1726950026792,0.014,63245.0,63244.0,0.2548015]
[1726950027007,0.013,63245.0,63244.0,0.2548015]
[1726950027472,0.158112,63247.0,63245.0,0.0917]
[1726950029655,0.158112,63247.0,63245.0,0.0927]
[1726950030357,0.158112,63247.0,63246.0,0.01761652]
[1726950032699,0.158112,63247.0,63246.0,0.01861652]
[1726950033564,0.12042623,63248.0,63246.0,0.01861652]
[1726950033806,0.158111,63247.0,63246.0,0.01861652]
[1726950034535,0.158111,63247.0,63246.0,0.01761652]
[1726950035868,0.474331,63247.0,63246.0,0.01761652]
[1726950036330,0.474331,63247.0,63246.0,0.01861652]
[1726950040155,0.790551,63247.0,63246.0,0.01861652]
[1726950044994,1.26982467,63247.0,63246.0,0.001]
[1726950046093,0.790562,63246.0,63245.0,0.000826]
[1726950047717,0.796562,63246.0,63245.0,0.000826]
[1726950049177,0.802562,63246.0,63245.0,0.000826]
[1726950058916,0.486337,63246.0,63245.0,0.096326]
[1726950062391,0.170112,63246.0,63245.0,0.096326]
[1726950062611,0.012,63246.0,63245.0,0.096326]
[1726950062828,0.012,63246.0,63245.0,0.1140367]
[1726950063079,0.012,63246.0,63245.0,0.9046117]
[1726950063988,0.006,63246.0,63245.0,0.9046117]
[1726950064220,0.012,63246.0,63245.0,0.9046117]
[1726950064782,0.006,63246.0,63245.0,0.9046117]
[1726950064995,0.007,63246.0,63245.0,0.9056117]
[1726950065467,0.001652,63247.0,63246.0,0.474337]
[1726950065692,0.001652,63247.0,63246.0,0.590528]
[1726950067568,0.001652,63247.0,63246.0,0.593528]
[1726950068010,0.001652,63247.0,63246.0,0.595528]
[1726950068531,0.001652,63247.0,63246.0,0.279303]
[1726950068739,0.001652,63247.0,63246.0,0.595528]
[1726950070871,0.001652,63247.0,63246.0,0.596354]
[1726950077280,0.001652,63247.0,63246.0,0.912579]
[1726950108514,0.001652,63247.0,63246.0,0.596354]
[1726950110316,0.001652,63247.0,63246.0,0.280129]
[1726950110820,0.001652,63247.0,63246.0,0.596354]
[1726950119247,0.001652,63247.0,63246.0,0.280129]
[1726950119472,0.001652,63247.0,63246.0,0.596354]
[1726950124306,0.001652,63247.0,63246.0,0.280129]
[1726950124539,0.001652,63247.0,63246.0,0.596354]
[1726950133908,0.001652,63247.0,63246.0,0.912579]
[1726950134140,0.001652,63247.0,63246.0,1.30000771]
[1726950135043,0.001652,63247.0,63246.0,1.228804]
[1726950135275,0.001652,63247.0,63246.0,1.46304363]
[1726950135987,0.001652,63247.0,63246.0,1.46304356]
[1726950139749,0.001652,63247.0,63246.0,1.58346979]
[1726950139977,0.001652,63254.0,63253.0,1.01070123]
[1726950140207,0.001652,63254.0,63253.0,1.58476918]
[1726950140452,0.001652,63254.0,63253.0,1.60291679]
[1726950140664,0.001652,63254.0,63253.0,1.62668691]
[1726950140888,0.001652,63254.0,63253.0,1.82428384]
[1726950141128,0.001652,63254.0,63253.0,1.89938384]
[1726950141349,0.001652,63254.0,63253.0,1.90138384]
[1726950141350,0.002652,63254.0,63253.0,1.90138384]
[1726950141945,0.002652,63254.0,63253.0,1.90638384]
[1726950142171,0.002652,63254.0,63253.0,2.01978675]
[1726950142398,0.003652,63254.0,63253.0,2.02478675]
[1726950142873,0.003652,63254.0,63253.0,1.90638384]
[1726950144263,0.003652,63254.0,63253.0,2.00104747]
[1726950145165,0.003652,63254.0,63253.0,1.90638384]
[1726950146316,0.003652,63254.0,63253.0,1.97734958]
[1726950147707,0.003652,63254.0,63253.0,2.00638384]
[1726950147964,0.003652,63254.0,63253.0,2.10302254]
[1726950148206,0.003652,63254.0,63253.0,2.00838384]
[1726950148441,0.003652,63254.0,63253.0,2.10302254]
[1726950149377,0.003652,63254.0,63253.0,2.00838384]
[1726950149611,0.003652,63254.0,63253.0,2.07930445]
[1726950150064,0.003652,63254.0,63253.0,2.10302254]
[1726950150297,0.003652,63254.0,63253.0,2.00838384]
[1726950151237,0.003652,63254.0,63253.0,2.07927823]
[1726950153334,0.003652,63254.0,63253.0,2.00838384]
[1726950154715,0.003652,63254.0,63253.0,1.88795761]
[1726950154925,0.003652,63254.0,63253.0,2.00838384]
[1726950163274,0.003652,63254.0,63253.0,2.00638384]
[1726950164378,0.003652,63254.0,63253.0,1.49466761]
[1726950177179,0.003652,63254.0,63253.0,1.56554554]
[1726950178321,0.003652,63254.0,63253.0,1.49466761]
[1726950179202,0.003652,63254.0,63253.0,1.58917152]
[1726950180804,0.003652,63254.0,63253.0,1.58933932]
[1726950181257,0.003652,63254.0,63253.0,1.49466761]
[1726950181484,0.003652,63254.0,63253.0,1.61300724]
[1726950182120,0.003652,63254.0,63253.0,1.613099]
[1726950183221,0.003652,63254.0,63253.0,1.49475937]
[1726950188687,0.003652,63254.0,63253.0,1.49466761]
[1726950192257,0.003652,63254.0,63253.0,1.51710499]
[1726950192538,0.003652,63254.0,63253.0,1.83329499]
[1726950192837,0.00356024,63254.0,63253.0,1.97747905]
[1726950193277,0.00356024,63254.0,63253.0,1.66128905]
[1726950194616,0.00356024,63254.0,63253.0,1.63885167]
[1726950194845,0.00356024,63254.0,63253.0,1.66141176]
[1726950198532,0.00356024,63254.0,63253.0,1.63896492]
[1726950198762,0.00356024,63254.0,63253.0,1.66140926]
[1726950199264,0.00356024,63254.0,63253.0,1.97759926]
[1726950201040,0.00356024,63254.0,63253.0,1.97559926]
[1726950201281,0.00356024,63254.0,63253.0,1.97759926]
[1726950203520,0.00356024,63254.0,63253.0,1.66140926]
[1726950203752,0.00356024,63254.0,63253.0,1.65940926]
[1726950204884,0.00356024,63254.0,63253.0,1.65943974]
[1726950205802,0.00356024,63254.0,63253.0,1.66143974]
[1726950206157,0.00356024,63254.0,63253.0,1.51911195]
[1726950208756,0.00356024,63254.0,63253.0,1.51910555]
[1726950209844,0.00356024,63254.0,63253.0,1.81285761]
[1726950210263,0.00356024,63254.0,63253.0,1.83529298]
[1726950210481,0.00356024,63254.0,63253.0,1.51910298]
[1726950211845,0.00356024,63254.0,63253.0,1.95737121]
[1726950213620,0.00356024,63254.0,63253.0,2.12386659]
[1726950213848,0.00356024,63254.0,63253.0,1.95736659]
[1726950221050,0.00356024,63254.0,63253.0,1.9573671]
[1726950221495,0.00356024,63254.0,63253.0,1.95736715]
[1726950222443,0.00356024,63254.0,63253.0,1.93493584]
[1726950223735,0.00356024,63254.0,63253.0,2.10143584]
[1726950223979,0.00356024,63254.0,63253.0,1.93493584]
[1726950228385,0.00356024,63254.0,63253.0,1.49831961]
[1726950229110,0.00356024,63254.0,63253.0,1.81450961]
[1726950236787,0.00356024,63254.0,63253.0,1.81250961]
[1726950237252,0.00356024,63254.0,63253.0,1.49631961]
[1726950237677,0.00356024,63254.0,63253.0,1.81250961]
[1726950240254,0.00356024,63254.0,63253.0,1.81450961]
[1726950241234,0.00356024,63254.0,63253.0,1.81250961]
[1726950243082,0.00356024,63254.0,63253.0,1.81450961]
[1726950245243,0.00356024,63254.0,63253.0,1.81250961]
[1726950254401,0.00356024,63254.0,63253.0,1.49631961]
[1726950254878,0.00356024,63254.0,63253.0,1.81250961]
[1726950255955,0.00356024,63254.0,63253.0,1.49631961]
[1726950257117,0.00356024,63254.0,63253.0,1.81250961]
[1726950257988,0.00356024,63254.0,63253.0,1.49631961]
[1726950259789,0.00356024,63254.0,63253.0,1.81250961]
[1726950260452,0.00356024,63254.0,63253.0,1.49631961]
[1726950296508,0.00356024,63254.0,63253.0,1.81250961]
[1726950299347,0.00356024,63254.0,63253.0,1.93293584]
[1726950299828,0.00356024,63254.0,63253.0,1.49631961]
[1726950300558,0.00356024,63254.0,63253.0,0.95962422]
[1726950300779,0.00356024,63254.0,63253.0,0.61971993]
[1726950300996,0.00356024,63254.0,63253.0,0.81727594]
[1726950301214,0.00356024,63254.0,63253.0,0.88845992]
[1726950301440,0.00356024,63254.0,63253.0,0.09798492]
[1726950301441,0.12398647,63254.0,63253.0,0.09798492]
[1726950301685,0.28423254,63254.0,63253.0,0.02480094]
[1726950302136,0.28523254,63254.0,63253.0,0.02980094]
[1726950302369,0.28423254,63254.0,63253.0,0.02480094]
[1726950302596,0.60041754,63254.0,63253.0,0.02480094]
[1726950302858,1.00794847,63254.0,63253.0,0.02980094]
[1726950303081,1.00794847,63254.0,63253.0,0.02480094]
[1726950303324,1.00694847,63254.0,63253.0,0.001652]
[1726950303538,1.00694847,63254.0,63253.0,0.004652]
[1726950303761,1.00794847,63254.0,63253.0,0.009652]
[1726950304727,1.00794847,63254.0,63253.0,0.006652]
[1726950305177,1.00794847,63254.0,63253.0,0.001652]
[1726950305429,1.00894847,63254.0,63253.0,0.001652]
[1726950305652,1.00594847,63254.0,63253.0,0.001652]
[1726950305905,0.89052224,63254.0,63253.0,0.001652]
[1726950306153,0.69976347,63254.0,63253.0,0.001652]
[1726950306417,0.68976347,63254.0,63253.0,0.001652]
[1726950306641,1.01794847,63254.0,63253.0,0.002652]
[1726950306855,0.70176347,63254.0,63253.0,0.002652]
[1726950307102,1.01794847,63254.0,63253.0,0.002652]
[1726950308028,0.70176347,63254.0,63253.0,0.002652]
[1726950309838,1.01794847,63254.0,63253.0,0.002652]
[1726950310099,0.70176347,63254.0,63253.0,0.002652]
[1726950315007,0.01356024,63254.0,63253.0,0.160747]
[1726950315474,0.01356024,63254.0,63253.0,0.02203738]
[1726950316477,0.13398647,63254.0,63253.0,0.02203738]
[1726950316712,0.29523254,63254.0,63253.0,0.02203738]
[1726950317231,0.13714054,63254.0,63253.0,0.02203738]
[1726950318456,0.29523254,63254.0,63253.0,0.02203738]
[1726950318725,0.61141754,63254.0,63253.0,0.02203738]
[1726950318953,0.70756347,63254.0,63253.0,0.02203738]
[1726950319181,1.02374847,63254.0,63253.0,0.002652]
[1726950321715,0.60826347,63254.0,63253.0,0.002652]
[1726950321958,0.29207847,63254.0,63253.0,0.002652]
[1726950322405,0.29207847,63254.0,63253.0,0.02203674]
[1726950323751,0.13398647,63254.0,63253.0,0.02203674]
[1726950324890,0.13398647,63254.0,63253.0,0.18013174]
[1726950326456,0.13398647,63254.0,63253.0,0.49632174]
[1726950330619,0.13398647,63254.0,63253.0,0.18013174]
[1726950337608,0.01356024,63254.0,63253.0,0.18013174]
[1726950337844,0.01356024,63254.0,63253.0,0.49632174]
[1726950341066,0.01356024,63254.0,63253.0,0.81251174]
[1726950342131,0.01356024,63254.0,63253.0,0.90451174]
[1726950344471,0.01356024,63254.0,63253.0,0.58832174]
[1726950350468,0.01356024,63254.0,63253.0,0.27213174]
[1726950351563,0.01356024,63254.0,63253.0,0.11403674]
[1726950351826,0.01356024,63254.0,63253.0,0.27213174]
[1726950352051,0.13398647,63254.0,63253.0,0.27213174]
[1726950357045,0.13398647,63254.0,63253.0,0.02203674]
[1726950359164,0.13398647,63254.0,63253.0,0.002652]
[1726950359397,0.13398647,63254.0,63253.0,0.0224396]
[1726950359604,0.13398647,63254.0,63253.0,0.002652]
[1726950359825,0.13398647,63254.0,63253.0,0.0224396]
[1726950360037,0.13398647,63254.0,63253.0,0.002652]
[1726950360460,0.13714054,63254.0,63253.0,0.0224396]
[1726950367591,0.92444847,63254.0,63253.0,0.0224396]
[1726950367962,0.92444847,63254.0,63253.0,0.002652]
[1726950375476,0.29207847,63254.0,63253.0,0.002652]
[1726950375900,0.29207847,63254.0,63253.0,0.01925501]
[1726950376134,0.29207847,63254.0,63253.0,0.002652]
[1726950376350,0.29207847,63254.0,63253.0,0.01925501]
[1726950377207,0.29207847,63254.0,63253.0,0.17735001]
[1726950377208,0.13398647,63254.0,63253.0,0.17735001]
[1726950377500,0.13398647,63254.0,63253.0,0.01925501]
[1726950378134,0.12798647,63254.0,63253.0,0.01925501]
[1726950378578,0.12798647,63254.0,63253.0,0.17735001]
[1726950378828,0.00756024,63254.0,63253.0,0.27095001]
[1726950379052,0.00256024,63254.0,63253.0,0.26995001]
[1726950379295,0.00156024,63254.0,63253.0,0.26995001]
[1726950379526,0.00156024,63254.0,63253.0,0.58714001]
[1726950379752,0.00156024,63254.0,63253.0,0.90333001]
[1726950380662,0.00156024,63254.0,63253.0,0.90233001]
[1726950381163,0.00156024,63254.0,63253.0,0.90533001]
[1726950381364,0.00156024,63254.0,63253.0,0.90333001]
[1726950381583,0.00156024,63254.0,63253.0,0.90233001]
[1726950381799,0.00256024,63254.0,63253.0,0.90733001]
[1726950382264,0.00356024,63254.0,63253.0,0.91333001]
[1726950404956,0.00356024,63254.0,63253.0,1.39257368]
[1726950405175,0.00356024,63254.0,63253.0,1.70876368]
[1726950405604,0.00356024,63254.0,63253.0,1.72760064]
[1726950405848,0.050826,63255.0,63254.0,0.993032]
[1726950406060,0.050826,63255.0,63254.0,1.6926969]
[1726950406286,0.050826,63255.0,63254.0,2.0088819]
[1726950406503,0.050826,63255.0,63254.0,2.02545282]
[1726950406724,0.050826,63255.0,63254.0,2.04845282]
[1726950407425,0.051826,63255.0,63254.0,2.07045282]
[1726950407640,0.052826,63255.0,63254.0,2.07045282]
[1726950408724,0.052826,63255.0,63254.0,2.18876616]
[1726950409683,0.052826,63255.0,63254.0,2.07045282]
[1726950410589,0.052826,63255.0,63254.0,2.16505968]
[1726950412567,0.052826,63255.0,63254.0,2.07045282]
[1726950413713,0.052826,63255.0,63254.0,1.99794325]
[1726950413924,0.052826,63255.0,63254.0,1.92502659]
[1726950422117,0.052826,63255.0,63254.0,1.60884159]
[1726950422562,0.052826,63255.0,63254.0,1.61049359]